Cogmind - Beta 16.1 @@@ ROGUE MODE // 2026.04.05 @ 20:17:53 Player: RHAHI Result: Destroyed by 05-JJR(R) with Subdweller Laser Performance ------------- Evolutions (0) 0 Regions Visited (2) 400 Robots Destroyed (24) 120 Value Destroyed (612) 612 Prototype IDs (15) 300 Alien Tech Used (0) 0 Bonus (0) 0 TOTAL SCORE: 1432 Bonus ------- None Cogmind --------- Core Integrity 0/250 Matter 261/300 Energy 80/100 System Corruption 1% Temperature Cool (6) Movement Core (100) Ox1 Location -10/Subcaves Parts ------- > --- POWER (1) -------- (None) > --- PROPULSION (2) --- (None) > --- UTILITY (2) ------ Improved Heat Sink Core Shielding > --- WEAPON (2) ------- Makeshift Hammer > --- INVENTORY (5) ---- Spiked Treads Structural Scanner Seismic Detector Power Bank Peak State ------------ > --- POWER ------------ Ion Engine > --- PROPULSION ------- Light Treads Light Treads > --- UTILITY ---------- Large Storage Unit Seismic Detector > --- WEAPON ----------- Barrage Gun Makeshift Hammer > --- INVENTORY -------- Spiked Treads Subdweller Monowheel Improved Heat Sink Structural Scanner Core Shielding Power Bank Beam Cannon Assault Rifle [Rating: 14] Favorites ----------- Power Ion Engine Engine Ion Engine Propulsion Light Treads Treads Light Treads Leg Aluminum Leg Utility Large Storage Unit Device Seismic Detector Storage Large Storage Unit Processor Transport Network Coupler Protection Core Shielding Weapon Beam Cannon Energy Cannon Beam Cannon Ballistic Gun Assault Rifle Special Weapon Mining Laser Impact Weapon Makeshift Hammer Build | -11 -10 -10 ------- Run | Yrd Mat Sub Slots Evolved . | . . . Power . | . . . Propulsion . | . . . Utility . | . . . Weapon . | . . . Parts Attached 31 | 5 20 6 Power 4 | . 3 1 Engine 4 | . 3 1 Core . | . . . Reactor . | . . . Propulsion 5 | 2 2 1 Treads 3 | . 2 1 Leg 2 | 2 . . Wheel . | . . . Hover . | . . . Flight . | . . . Utility 11 | 1 8 2 Device 6 | 1 3 2 Storage 2 | . 2 . Processor 2 | . 2 . Hackware . | . . . Protection 1 | . 1 . Artifact . | . . . Weapon 11 | 2 7 2 Energy Gun . | . . . Energy Cannon 5 | . 5 . Ballistic Gun 4 | 1 2 1 Ballistic Cannon . | . . . Launcher . | . . . Special Weapon 1 | 1 . . Impact Weapon 1 | . . 1 Slashing Weapon . | . . . Piercing Weapon . | . . . Special Melee Weapon . | . . . Unidentified Prototypes . | . . . Parts Lost 8 | . 1 7 Power 2 | . . 2 Propulsion 3 | . . 3 Utility 1 | . 1 . Weapon 2 | . . 2 Highest Loss Streak 5 | . 1 5 To Critical Strikes . | . . . Average Backups 11 | 3 11 11 Power . | . . . Propulsion 2 | 1 3 2 Utility 3 | . 3 4 Weapon 3 | 1 3 4 Tool/Special . | . . . Unused Backups 15 | 1 4 10 Power 1 | . 1 . Propulsion 4 | . . 4 Utility 5 | . 2 3 Weapon 5 | 1 1 3 Tool/Special . | . . . Average Slot Usage (%) 98 | . 97 99 Engine 13 | . 13 13 Treads 24 | . 23 27 Leg 3 | . 4 . Device 12 | . 11 16 Storage 10 | . 11 9 Processor 2 | . 3 . Protection 1 | . . 2 Energy Cannon 9 | . 11 5 Ballistic Gun 12 | . 12 13 Special Weapon 3 | . 4 3 Impact Weapon 1 | . . 4 Peak Build Rating 14 | 5 10 14 Average Rating 8 | 3 7 10 On Entrance 4 | . 4 10 Avg Prop Armor Cover (%) 23 | 23 24 . Naked Turns . | . . . Heaviest Build 51 | 4 51 31 Greatest Support 40 | 3 40 40 Greatest Overweight (x) 1 | 1 1 1 Average Overweight (x) . | . . . Largest Inventory Capacity 20 | 5 20 15 Average Capacity 13 | 5 14 11 Most Carried 15 | 5 15 15 Average Carried 11 | 4 11 11 Final Capacity 15 | 5 15 5 Final Carried 15 | 5 15 4 Class Distribution -------------------- 100% | Mutant Dominant Class ---------------- Mutant | -10/Materials Mutant | -10/Subcaves Resources | -11 -10 -10 ----------- Run | Yrd Mat Sub Matter Collected 1037 | 245 542 250 Remotely . | . . . Salvage Created 901 | 94 757 50 Parts 45 | 3 41 1 Haulers Intercepted 2 | . 2 . Recyclers Shooed . | . . . Parts Field Recycled . | . . . Retrieved Matter . | . . . Parts Self-Destructed 3 | . . 3 Prevented . | . . . Parts Restored . | . . . Kills | -11 -10 -10 ------- Run | Yrd Mat Sub Combat Hostiles Destroyed 14 | . 12 2 Guns 4 | . 4 . Cannons 9 | . 7 2 Classes Destroyed 8 | 2 5 1 Worker 2 | . 2 . Builder 1 | . 1 . Tunneler 1 | 1 . . Hauler 2 | . 2 . Recycler 2 | 1 1 . Watcher 2 | . 2 . Grunt 12 | . 12 . Subdweller 2 | . . 2 Best Kill Streak 4 | 2 4 1 Combat Bots Only 4 | . 4 1 Max Kills in Single Turn 2 | 1 2 1 Gunslinging . | . . . Exploded . | . . . Melee . | . . . Uniques/NPCs Destroyed . | . . . Combat | -11 -10 -10 -------- Run | Yrd Mat Sub Hostile Shots Fired 106 | . 58 48 Missed 22 | . 14 8 Hits 84 | . 44 40 Projectile 84 | . 44 40 AOE 1 | . . 1 Critical Strikes 2 | . 2 . Damage Taken 1506 | . 596 910 Core 258 | . 92 166 Absorbed by Shields . | . . . Redirected to Shielding 37 | . 4 33 Regen/Repaired (Parts) 92 | . 92 . Core Remaining (%) 100 | 100 . . Volleys Fired 133 | 7 103 23 Largest 2 | 1 2 2 Hottest 120 | 20 120 120 Shots Fired 225 | 7 176 42 Gun 128 | 7 102 19 Cannon 70 | . 53 17 Launcher . | . . . Special 27 | . 21 6 Kinetic 128 | 7 102 19 Thermal 97 | . 74 23 Explosive . | . . . Electromagnetic . | . . . Robot Hit Streak 44 | 5 16 44 Robot Miss Streak 3 | 1 3 . Penetration Max . | . . . Secondary Targets . | . . . Shots Hit Robots 145 | 6 99 40 Core Hits 43 | 3 34 6 Critical Kills 1 | . 1 . Critical Parts Destroyed . | . . . Critical Strikes 1 | . 1 . Meltdown 1 | . 1 . Melee Attacks 5 | . . 5 Impact 5 | . . 5 Slashing . | . . . Piercing . | . . . Sneak Attacks . | . . . Combat Hostiles . | . . . Follow-up Attacks . | . . . Damage Inflicted 2161 | 78 1384 699 Guns 1051 | 78 717 256 Cannons 921 | . 623 298 Explosions . | . . . Melee 73 | . . 73 Ramming 20 | . 20 . Kinetic 1051 | 78 717 256 Thermal 1017 | . 647 370 Explosive . | . . . Electromagnetic . | . . . Impact 73 | . . 73 Slashing . | . . . Piercing . | . . . Highest Corruption 1 | . 1 1 Average Corruption 1 | . 1 1 Corruption Purged . | . . . Corruption Blocked . | . . . Effects 17 | . 10 7 Message Errors 3 | . . 3 Matter Fused 3 | . 2 1 Heat Flow Errors 3 | . 1 2 Energy Discharges 4 | . 4 . Parts Rejected 1 | . 1 . Data Loss (minor) 1 | . 1 . Data Loss (major) 2 | . 1 1 Overload Shots . | . . . Overflow Damage 24 | . 24 . Projectiles 24 | . 24 . Explosions . | . . . Melee . | . . . Knockbacks 2 | . . 2 Impact 2 | . . 2 Kinetic . | . . . Secondary . | . . . Self-Inflicted Damage . | . . . Shots . | . . . Rammed 2 | . 2 . Targets Rammed 2 | . 2 . Kicked . | . . . Crushed . | . . . Highest Temperature 235 | . 235 193 Average Temperature 55 | . 53 97 Received Heat Transfer 468 | . 372 96 Siege Activations . | . . . Martial Activations . | . . . Shielding Activations . | . . . Robots Disrupted . | . . . Combat Hostiles . | . . . Robots Corrupted . | . . . Combat Hostiles . | . . . Parts Fried . | . . . Impact Corruptions . | . . . Robots Melted 1 | . 1 . Combat Hostiles 1 | . 1 . Parts Melted 5 | . 5 . Heat Transferred 2124 | . 1345 779 Parts Sabotaged . | . . . Parts Stolen . | . . . Parts Stripped . | . . . Power Chain Reactions . | . . . Alert | -11 -10 -10 ------- Run | Yrd Mat Sub Maximum Alert Level . | . . . Low Security (%) 100 | 100 100 . Level 1 . | . . . Level 2 . | . . . Level 3 . | . . . Level 4 . | . . . Level 5 . | . . . High Security . | . . . Max Security . | . . . Peak Influence 76 | 10 76 . Initial . | . . . Average 22 | 1 23 . Influence Increases 505 | 10 495 . Destroy 0b10 Robot/C 240 | . 240 . Destroy 0b10 Robot/NC 50 | 10 40 . Destroy Leader 58 | . 58 . Successful Hack 31 | . 31 . Select Force Hacks 60 | . 60 . Disable Machine 15 | . 15 . Destroy Structure 21 | . 21 . Lose Combat Pursuer 30 | . 30 . Influence Decreases 505 | 10 425 70 Entered New Map 34 | . . 34 Time Decay 416 | 10 370 36 Lost Part 10 | . 10 . Purge Threat 45 | . 45 . Squads Dispatched 3 | . 3 . Investigation 3 | . 3 . Extermination . | . . . Reinforcement . | . . . Assault . | . . . Garrison . | . . . Intercept . | . . . Searches Triggered . | . . . Construction Impeded . | . . . Haulers Reinforced . | . . . Active Scanning Responses . | . . . Cargo Convoy Interrupts . | . . . Stealth | -11 -10 -10 --------- Run | Yrd Mat Sub Distress Signals 2 | . 2 . Communications Jammed . | . . . Distress Signals . | . . . Times Spotted 30 | . 24 6 Peak Tracking Total 4 | . 4 3 Tactical Retreats 2 | . 2 . Traps | -11 -10 -10 ------- Run | Yrd Mat Sub Traps Triggered 3 | . 2 1 Indirectly . | . . . Trap Hack Attempts . | . . . Triggered . | . . . Disarmed . | . . . Reprogrammed . | . . . Reused . | . . . Traps Extracted . | . . . Installed . | . . . Triggered . | . . . Machines | -11 -10 -10 ---------- Run | Yrd Mat Sub Machines Disabled 2 | . 1 1 Max in Single Turn 1 | . 1 1 Machines Repaired . | . . . Machines Dismantled . | . . . Machines Sabotaged . | . . . Overloaded Fab Kills . | . . . Hacking | -11 -10 -10 --------- Run | Yrd Mat Sub Machines Accessed 11 | . 10 1 Terminals 7 | . 7 . Fabricators . | . . . Repair Stations 1 | . 1 . Recycling Units 2 | . 2 . Scanalyzers . | . . . Garrison Access . | . . . Total Hacks 32 | . 31 1 Successful 16 | . 15 1 Failed 15 | . 15 . Catastrophic 2 | . 2 . Database Lockouts 1 | . 1 . Manual 25 | . 25 . Terminals 25 | . 25 . Fabricators . | . . . Repair Stations 3 | . 3 . Recycling Units 3 | . 3 . Scanalyzers . | . . . Garrison Access . | . . . Terminal Hacks 6 | . 5 1 Robot Schematic 1 | . 1 . Robot Analysis 2 | . 2 . Prototype ID Bank 1 | . 1 . Unreport Threat 1 | . 1 . Proto ID Catalog 1 | . . 1 Fabricator Hacks . | . . . Repair Station Hacks 2 | . 2 . Scan Component 1 | . 1 . Repair 1 | . 1 . Recycling Unit Hacks . | . . . Scanalyzer . | . . . Garrison Access Hacks . | . . . Unauthorized Hacks 8 | . 8 . Terminals 5 | . 5 . Skim 5 | . 5 . Fabricators . | . . . Repair Stations . | . . . Recycling Units 3 | . 3 . Reject 1 | . 1 . Tunnel 2 | . 2 . Scanalyzers . | . . . Garrison Access . | . . . Data Cores Recovered . | . . . Used . | . . . Hacking Detections 7 | . 7 . Full Trace Events . | . . . Feedback Events . | . . . Feedback Blocked . | . . . Robot Schematics Acquired 1 | . 1 . Robots Built . | . . . Authchips . | . . . Time . | . . . Total Robot Build Rating . | . . . Part Schematics Acquired . | . . . Parts Built . | . . . Authchips . | . . . Time . | . . . Total Part Build Rating . | . . . Part Studies Acquired . | . . . Parts Repaired 1 | . 1 . Time 26 | . 26 . Parts Recycled . | . . . Recycled Matter . | . . . Retrieved Matter . | . . . Retrieved Components . | . . . Parts Scanalyzed . | . . . Part Schematics Acquired . | . . . Parts Damaged . | . . . Bothacking | -11 -10 -10 ------------ Run | Yrd Mat Sub Used RIF Installer . | . . . Robots Hacked . | . . . Non-combat . | . . . Combat . | . . . Robot Hacks Applied . | . . . Relay Couplers Released . | . . . Fabnet Peak Effective % . | . . . Robots Rewired . | . . . Allies Hacked . | . . . Hacks Repelled . | . . . Allies | -11 -10 -10 -------- Run | Yrd Mat Sub Total Allies . | . . . Largest Group . | . . . Highest-Rated Group . | . . . Highest-Rated Ally . | . . . Total Orders . | . . . Ally Attacks . | . . . Total Damage . | . . . Kills . | . . . Allies Corrupted . | . . . Allies Melted . | . . . Intel | -11 -10 -10 ------- Run | Yrd Mat Sub Active Infowar (turns) 2195 | 15 1387 793 Structural 442 | . . 442 Seismic 1741 | 15 1101 625 T.N.C. 286 | . 286 . Robot Analysis Total 2 | . 2 . Derelict Logs Recovered 1 | . . 1 Drone Launches . | . . . Drone Recoveries . | . . . Exploration | -11 -10 -10 ------------- Run | Yrd Mat Sub Turns Passed 2949 | 57 1943 949 Spaces Moved 1454 | 47 905 502 Core 170 | 47 122 1 Treads 1163 | . 662 501 Legs 121 | . 121 . Wheels . | . . . Hover . | . . . Flight . | . . . Fastest Speed 50 | 50 50 100 Average Speed 147 | 62 144 159 Slowest Speed 240 | 100 240 160 Overloaded Moves . | . . . Propulsion Burnouts . | . . . Robots Hopped . | . . . Potential Cave-ins . | . . . Cave-ins Triggered . | . . . Exploration Rate (%) 44 | 3 96 34 Regions Visited 2 Branch Regions 1 Pre-discovered Areas 3 | . 2 1 Known Exits Taken 1 | . 1 . Unknown Exits Taken 1 | 1 . . Scrap Searched 6 | . . 6 Spaces Dug 19 | . 18 1 Terrain Destroyed 21 | . 20 1 Melee . | . . . Projectile 21 | . 20 1 AOE . | . . . Terrain Rammed . | . . . Walls Destroyed . | . . . Machines Disabled . | . . . Actions | -11 -10 -10 --------- Run | Yrd Mat Sub Total 1976 | 65 1325 586 Wait 254 | . 243 11 Move 1452 | 46 904 502 Hop . | . . . Pick Up 37 | 5 25 7 Fast Attach 9 | 5 4 . Attach 8 | . 4 4 Detach 5 | 1 3 1 Swap 42 | . 22 20 Drop 29 | 1 15 13 Fire 133 | 7 103 23 Melee 5 | . . 5 Ram . | . . . Kick . | . . . Crush 2 | . 2 . Escape Stasis . | . . . Rewire . | . . . Trap . | . . . Miscellaneous . | . . . Route ------- -11/Scrapyard -10/Materials (discovered 6 exits: *Mat x3 / [*Min x2] / *Sub) -10/Subcaves (discovered 3 exits: Mat x2 / Rec) History --------- Turn | Location | Event 16 | -11/Scrapyard | Discovered new exit (range 15) 58 | -11/Scrapyard | Entered Materials 327 | -10/Materials | Build established: Mutant 539 | -10/Materials | Discovered new exit (range 15) 704 | -10/Materials | Discovered new exit (range 13) 783 | -10/Materials | Discovered new exit (range 13) 805 | -10/Materials | Discovered new exit (range 10) 1083 | -10/Materials | Central database locked down 1159 | -10/Materials | Learned Storage trap positions 1224 | -10/Materials | Learned location of 2 exits from Subcaves 1321 | -10/Materials | Identified exit to Materials 1321 | -10/Materials | Identified exit to Subcaves 1357 | -10/Materials | Loaded intel: 2 recycling unit locations 1519 | -10/Materials | Learned 2 Storage zone layouts 1740 | -10/Materials | Repaired Lgt. Treads 2001 | -10/Materials | Entered Subcaves 2002 | -10/Subcaves | Identified exit to Materials 2003 | -10/Subcaves | Identified exit to Recycling 2264 | -10/Subcaves | Disturbed a concealed Subdweller 2287 | -10/Subcaves | Core integrity fell below 50% 2595 | -10/Subcaves | Visited 4L-MR0's lab 2623 | -10/Subcaves | Found Power Bank 2710 | -10/Subcaves | Learned location of Zion (-7) 2901 | -10/Subcaves | A Subdweller sparked back to life 2901 | -10/Subcaves | A Subdweller sparked back to life 2945 | -10/Subcaves | Core integrity fell below 20% 2950 | -10/Subcaves | Destroyed by 05-JJR(R) with Subdweller Laser Last Messages --------------- 02649_ RRF/GWTT>U0MF78GEN0= 02658_ Acquired 5 matter. 02660_ Acquired 25 matter. 02710_ Acquired derelict log, extracted data. World map updated: -7/Zion. 02741_ System corrupted: Substantial component data lost. 02769_ System corrupted: Heat flow error (+172). 02901_ RF-ABF(R) creaks and sparks as it begins to move. 02901_ BR-AQF(R) creaks and sparks as it begins to move. 02930_ Ion Engine destroyed. 02936_ Barrage Gun destroyed. 02940_ Lgt. Treads destroyed. 02941_ 05-JJR(R) knocked back. 02943_ BR-AQF(R) knocked back. 02944_ Lgt. Treads destroyed. 02945_ Destroyed Unknown Protection. 02946_ Beam Cannon destroyed. Map ----- +----------------------------------------------------+ | ?????????????????????????????????????????????????? | | ?????????????????????????????????????????????????? | | ?????????????????????????????????????????????????? | | ?????????????????????????????????????????????????? | | ?????????????????????????????????????????????????? | | ?????????????????????????????????????????????????? | | ###??????????????????????????????????????????????? | | ####????????????????????????######???????????????? | | ###????????????????????###########??????????????? | | ##????????????????????### ## ??????????????? | | #######???????????????"# ? ??????????????? | | ########?????????????? & ??????????????? | | ## ###??????????????? "# ##??????????????? | | ##??????????????? # #??????????????? | | ##???#####???????? ?????????????????? | | ###########??????? " ?????????????????? | | ####### ######??##& ?????????????????? | | ## ## ########## ###????????????????? | | ###### ;###????????????????? | | ####" ;;##????????????????? | | #####"" ;##????????????????? | | ## ##### " R ;###### ???????????? | | ## ### ###"" ;####### ???###????? | | ### #### ##" ## ##????? | | ########## ## ""#????? | | ########### @&R "?????? | | #### ### ?????? | | ### ### ## R #####?????? | | ## ## ######?????? | | ## ### ## ####????????? | | ### ### ####?????????? | | ### ####### #######??????????? | | #### ######## ####???????????? | | ##### #### ##????????????? | | ### ##### ####????????????? | | #### #### #### ????????????? | | #### ### ####??????????????? | | ##?# #### ######???????????????? | | ##?# #### #####????????????????? | | ###?# #### ####?????????????????? | | ####? ### ### ???????????????? | | ###? #### ### ####???????????????? | | ??? ##### #### ## ??????????? | | ??? #####??###### ?????????? | | ??################ ## #????????? | | ??##### ###### ##### #### ## #????????? | | ??## #### ###?? #####???????????? | | ??## ####? ###???????????????? | | ??### # ## ##????????????????? | | ??## ##### ###???????????????? | +----------------------------------------------------+ Best States ------------- Heat Dissipation 39 Energy Generation 10 Energy Capacity 250 Matter Stores 300 Matter Capacity 300 Sight Range 16 Terrain Scan Density 10 Core Shielding 20 Evasion (%) 55 Targeting Accuracy 5 Recoil Reduction 2 Item Schematics ----------------- None Robot Schematics ------------------ M-13 Machinist | -10/Materials | Hacked Fabricated ------------ Nothing Repaired ---------- Lgt. Treads | 34% | -10/Materials Studied --------- None Alien Tech Used ----------------- None Achievements -------------- None Challenges ------------ None Game ------ Seed ThermicSapperPerforator Manual? 0 Play Time 00:38:39 Cumulative 135.9 hours Start 2026.04.04 @ 17:41:21 End 2026.04.05 @ 20:17:53 Sessions 2 Manual Loads 0 Difficulty Rogue Special Mode None Game No. 53 Rogue 52 Adventurer 1 Explorer 0 Win Type - Total 2 Types 1/0/1/0/0/0/0/0/0/0 Lore% 51 Gallery% 47 Achievement% 43 Wizard Run 0 Options --------- Layout 2 ASCII 0 Keyboard 1 Movement Vi Keybinds 1 Fullscreen 2 Font 32/Terminus Map View 50x44 Zoom Use 0% Tactical HUD 1 Map Filters NONE Filters NONE Steam 1 RUN: 0121db01-0842-4f61-ab89-fd9edb9848ec